bitfinex/quotes_ETHUSD_20240916
["timestamp","ask_amount","ask_price","bid_price","bid_amount"]
[1726493774155,4.36026,2293.5,2292.9,4.36116]
[1726493774354,4.36026,2293.5,2293.0,0.13709425]
[1726493774546,4.36026,2293.5,2292.9,4.36126]
[1726493774737,0.03649878,2293.6,2293.0,4.49816425]
[1726493774939,4.35971,2293.8,2293.2,4.36055]
[1726493775177,4.3594,2293.9,2293.2,4.36055]
[1726493775178,9.391426,2293.9,2293.2,4.36055]
[1726493775383,5.031896,2293.9,2293.3,0.13709425]
[1726493775588,2.40219878,2294.0,2293.3,0.13709425]
[1726493775730,4.35908,2294.1,2293.4,4.36022]
[1726493775930,4.35904,2294.1,2293.5,4.36001]
[1726493776147,0.03649878,2294.0,2293.6,0.13709425]
[1726493776432,4.35939,2293.9,2293.2,6.63535]
[1726493776686,0.03649878,2294.0,2293.2,6.63535]
[1726493776687,8.71952,2293.8,2293.7,0.13709425]
[1726493776844,4.35976,2293.8,2293.2,2.2748]
[1726493777173,4.35894,2294.2,2293.6,4.35984]
[1726493777356,0.23111,2294.3,2293.6,4.35994]
[1726493777357,4.58984,2294.3,2293.6,4.35994]
[1726493777560,4.3592,2294.0,2293.4,4.36023]
[1726493777781,4.3592,2294.0,2293.5,0.13648488]
[1726493777782,8.7185,2294.0,2293.5,0.13648488]
[1726493777940,4.58989,2294.3,2293.6,4.35982]
[1726493778142,8.71785,2294.2,2293.6,4.35981]
[1726493778457,2.3111,2294.4,2293.8,4.35956]
[1726493778458,6.66966,2294.4,2293.8,4.35956]
[1726493778652,4.35863,2294.3,2293.7,0.13648488]
[1726493778855,4.39521878,2294.3,2293.6,4.35995]
[1726493779192,4.35952,2293.9,2293.2,2.2748]
[1726493779371,4.39618878,2293.8,2293.7,0.13648488]
[1726493779541,4.35969,2293.8,2293.2,6.63536]
[1726493779745,2.3111,2294.4,2293.3,0.13648488]
[1726493779746,6.66959,2294.4,2293.3,0.13648488]
[1726493779953,4.35902,2294.1,2293.4,4.36022]
[1726493780148,4.359,2294.1,2293.5,0.13575179]
[1726493780655,4.35875,2294.3,2293.7,4.35963]
[1726493780856,4.35875,2294.3,2293.5,0.13575179]
[1726493781088,4.39483878,2294.5,2293.8,4.49517372]
[1726493781325,4.35856,2294.4,2293.7,2.2961]
[1726493781601,2.33499878,2294.7,2293.9,4.35937]
[1726493781602,2.52835,2294.7,2293.9,4.35937]
[1726493781759,2.52835,2294.7,2294.0,4.35908]
[1726493781760,4.35789,2294.7,2294.0,4.35908]
[1726493781965,4.35789,2294.7,2294.2,4.35875]
[1726493782160,4.35789,2294.7,2294.1,4.35889]
[1726493782376,4.35759,2294.9,2294.3,4.35845]
[1726493782777,0.0766295,2295.1,2294.5,4.35809]
[1726493782778,8.7910895,2295.1,2294.5,4.35809]
[1726493782984,0.0766295,2295.1,2294.4,2.4105]
[1726493783288,0.0766295,2295.1,2294.7,4.35786]
[1726493783487,0.0766295,2295.1,2294.6,4.35792]
[1726493783689,4.4338295,2295.1,2294.6,0.71580225]
[1726493783988,4.4338295,2295.1,2294.7,4.49283066]
[1726493783989,0.0766295,2295.1,2294.7,4.49283066]
[1726493784147,0.0766295,2295.1,2294.7,0.13499066]
[1726493784352,0.0766295,2295.1,2294.5,4.3581]
[1726493784554,0.0766295,2295.1,2294.7,4.35785]
[1726493784749,4.35639,2295.5,2294.4,2.66511186]
[1726493784952,0.044923,2295.1,2294.8,4.3575]
[1726493785174,0.044923,2295.1,2295.0,4.35729]
[1726493785474,0.044923,2295.1,2295.0,11.27468024]
[1726493785783,0.044923,2295.1,2295.0,15.54484164]
[1726493786114,0.044923,2295.1,2295.0,11.18755164]
[1726493786685,0.044923,2295.1,2295.0,6.83026164]
[1726493787009,0.044923,2295.1,2295.0,11.18755164]
[1726493787569,0.044923,2295.1,2295.0,11.97503836]
[1726493787967,0.044923,2295.1,2295.0,19.33232836]
[1726493788216,0.071825,2295.6,2295.4,2.4557]
[1726493788413,0.071825,2295.6,2295.4,6.81209]
[1726493788596,0.071825,2295.6,2295.5,0.13384997]
[1726493788849,0.071825,2295.6,2295.5,4.49018997]
[1726493789001,0.071825,2295.6,2295.5,0.13384997]
[1726493789573,0.071825,2295.6,2295.5,9.54112397]
[1726493789973,0.071825,2295.6,2295.5,13.89746397]
[1726493790223,0.071825,2295.6,2295.5,12.54112397]
[1726493790379,0.071825,2295.6,2295.5,15.25452397]
[1726493790587,0.071825,2295.6,2295.5,19.61086397]
[1726493790913,0.071825,2295.6,2295.5,10.46028397]
[1726493791314,0.071825,2295.6,2295.5,14.81662397]
[1726493792029,0.071825,2295.6,2295.5,7.46028397]
[1726493792316,0.071825,2295.6,2295.5,0.13384997]
[1726493792524,8.784125,2295.6,2295.5,0.13384997]
[1726493792764,4.35701,2295.2,2294.6,6.7715]
[1726493792931,4.35701,2295.2,2294.6,7.207312]
[1726493793131,4.35666,2295.4,2294.7,0.11354148]
[1726493793132,8.71334,2295.4,2294.7,0.11354148]
[1726493793330,0.071825,2295.6,2295.1,4.35695]
[1726493793714,4.428085,2295.6,2295.0,4.35712]
[1726493793924,4.35663,2295.4,2294.8,0.80527588]
[1726493794129,4.35663,2295.4,2294.9,0.11354148]
[1726493794361,4.35694,2295.2,2294.9,0.11354148]
[1726493794562,4.35663,2295.4,2294.7,4.35773]
[1726493794563,8.71328,2295.4,2294.8,4.35767]
[1726493794717,4.35674,2295.3,2294.9,0.11354148]
[1726493794918,4.428115,2295.6,2294.9,0.11354148]
[1726493795148,8.71724,2294.3,2293.3,2.3587]
[1726493795473,0.63848856,2295.6,2293.3,2.3587]
[1726493795474,2.96120502,2294.2,2293.3,2.3587]
[1726493795619,2.2542,2294.2,2293.3,6.71922]
[1726493795821,2.2542,2294.2,2293.4,4.36029]
[1726493796032,0.03649878,2294.4,2293.4,0.70859863]
[1726493796227,0.03649878,2294.4,2293.4,0.30672986]
[1726493796452,4.35887,2294.2,2293.4,0.30672986]
[1726493796642,4.35901,2294.1,2293.4,0.30672986]
[1726493797047,4.35845,2294.4,2293.4,0.30672986]
[1726493797247,2.4786,2294.6,2293.4,3.30672986]
[1726493797559,2.4786,2294.6,2293.6,4.35992]
[1726493797764,6.83673,2294.6,2293.6,4.35992]
[1726493798055,4.35813,2294.6,2293.7,4.3597]
[1726493798272,2.3562,2294.9,2293.9,6.73705]
[1726493798477,4.35768,2294.8,2293.9,2.3777]
[1726493798642,4.35789,2294.7,2293.9,2.3777]
[1726493798866,4.35789,2294.7,2294.0,0.23777]
[1726493799024,6.71376,2294.9,2294.0,0.23777]
[1726493799343,4.35693,2295.2,2294.0,7.59693]
[1726493799550,4.35716,2295.1,2294.2,3.0]
[1726493799867,3.0153485,2295.4,2294.3,0.735895]
[1726493799868,4.35692,2295.2,2294.3,0.735895]
[1726493800226,4.35673,2295.3,2294.4,6.80817]
[1726493800454,4.428015,2295.6,2294.6,7.35797]
[1726493800455,4.35636,2295.5,2294.6,7.35797]
[1726493800769,0.071825,2295.6,2294.6,7.35797]
[1726493800770,0.071825,2295.6,2295.0,2.4528]
[1726493801118,0.071825,2295.6,2295.0,6.81008]
[1726493801324,0.071825,2295.6,2295.0,2.4528]
[1726493801762,0.071825,2295.6,2295.3,4.35667]
[1726493801958,0.071825,2295.6,2295.0,2.4528]
[1726493802122,4.35649,2295.5,2295.0,2.4528]
[1726493802322,4.35659,2295.4,2295.0,2.4528]
[1726493802554,4.35637,2295.5,2294.6,2.2875]
[1726493802761,4.35689,2295.3,2294.7,3.0]
[1726493802959,4.35689,2295.3,2294.6,2.2875]
[1726493803268,4.35707,2295.2,2294.6,2.2875]
[1726493803576,0.071825,2295.6,2294.4,3.0]
[1726493803768,4.35826,2294.5,2294.2,2.3844]
[1726493804065,4.35831,2294.5,2293.8,2.3844]
[1726493804275,4.35831,2294.5,2293.9,0.23844]
[1726493804622,0.45392483,2295.5,2294.2,2.3679]
[1726493804856,4.35648,2295.5,2294.6,4.35791]
[1726493805077,8.71297,2295.5,2294.5,4.35807]
[1726493805256,0.071825,2295.6,2294.9,4.35735]
[1726493805424,0.071825,2295.6,2295.0,0.435735]
[1726493805627,0.071825,2295.6,2294.6,2.3679]
[1726493805628,4.35636,2295.5,2294.6,2.3679]
[1726493805937,4.35751,2294.9,2294.2,2.4323]
[1726493806367,4.35788,2294.7,2294.2,2.4323]
[1726493806536,4.35758,2294.9,2294.2,2.4323]
[1726493806863,4.35753,2294.9,2294.2,3.111446]
[1726493807161,4.35753,2294.9,2294.2,2.4323]
[1726493807162,4.35768,2294.8,2294.2,2.4323]
[1726493807361,4.35753,2294.9,2294.2,2.4323]
[1726493807362,4.3576,2294.9,2294.2,2.4323]
[1726493807549,4.35696,2295.2,2294.2,2.67553]
[1726493807734,4.35696,2295.2,2294.4,4.35826]
[1726493807934,4.35692,2295.2,2294.5,4.794066]
[1726493808135,6.80934,2295.3,2294.5,4.794066]
[1726493808347,4.35641,2295.5,2294.7,4.35785]
[1726493808589,4.35641,2295.5,2294.7,4.35774]
[1726493808873,4.35676,2295.3,2294.7,0.49383708]
[1726493809024,4.35676,2295.3,2294.8,0.10122423]
[1726493809228,4.35676,2295.3,2294.6,3.0]
[1726493809468,4.35676,2295.3,2294.9,0.10122423]
[1726493809651,4.35676,2295.3,2294.6,3.0]
[1726493809828,4.35676,2295.3,2295.0,0.10122423]
[1726493810027,4.35676,2295.3,2294.6,3.735809]
[1726493810269,0.071825,2295.6,2295.1,0.10122423]
[1726493810565,0.071825,2295.6,2295.2,0.08712476]
[1726493810868,0.071825,2295.6,2295.1,4.35693]
[1726493811166,0.071825,2295.6,2295.3,0.10122423]
[1726493811375,0.071825,2295.6,2295.1,5.477505]
[1726493811887,0.071825,2295.6,2295.2,0.10122423]
[1726493812047,4.428015,2295.6,2295.2,0.10122423]
[1726493812242,4.35641,2295.5,2295.2,0.10122423]
[1726493812445,8.71291,2295.5,2294.6,9.75657]
[1726493812693,0.071825,2295.6,2295.3,0.10122423]
[1726493812843,0.071825,2295.6,2295.0,3.0]
[1726493813047,4.427985,2295.6,2295.4,0.10122423]
[1726493813280,4.427985,2295.6,2295.0,3.0]
[1726493813281,0.071825,2295.6,2295.0,7.35728]
[1726493813490,0.071825,2295.6,2295.5,8.81390423]
[1726493813693,0.071825,2295.6,2295.5,11.17598]
[1726493813848,0.071825,2295.6,2295.5,2.56452423]
[1726493814055,0.071825,2295.6,2295.5,0.09970188]
[1726493814693,0.071825,2295.6,2295.5,8.81385348]
[1726493814979,0.071825,2295.6,2295.5,10.02973535]
[1726493815204,0.071825,2295.6,2295.5,12.42170883]
[1726493815401,0.071825,2295.6,2295.5,19.77804883]
[1726493815573,0.071825,2295.6,2295.5,15.42170883]
[1726493816464,0.071825,2295.6,2295.5,9.74831348]
[1726493816965,0.071825,2295.6,2295.5,2.39197348]
[1726493817396,0.071825,2295.6,2295.5,11.10465348]
[1726493817599,0.071825,2295.6,2295.5,6.74831348]
[1726493817963,0.071825,2295.6,2295.5,11.10465348]
[1726493818159,0.071825,2295.6,2295.5,19.57145883]
[1726493818365,0.071825,2295.6,2295.5,15.65301883]
[1726493818614,0.071825,2295.6,2295.5,6.50243883]
[1726493818791,0.071825,2295.6,2295.5,5.39197348]
[1726493819006,0.071825,2295.6,2295.5,2.39197348]
[1726493819512,0.071825,2295.6,2295.5,6.74831348]
[1726493819808,0.071825,2295.6,2295.5,11.10465348]
[1726493820171,0.071825,2295.6,2295.5,18.46099348]
[1726493820471,0.071825,2295.6,2295.5,11.59441283]
[1726493821002,0.071825,2295.6,2295.5,15.95075283]
[1726493821417,0.071825,2295.6,2295.5,20.30709283]
[1726493821588,0.071825,2295.6,2295.5,15.95075283]
[1726493821976,0.071825,2295.6,2295.5,2.39197348]
[1726493822275,0.071825,2295.6,2295.5,14.10465348]
[1726493822495,0.071825,2295.6,2295.5,9.74831348]
[1726493822918,0.071825,2295.6,2295.5,18.46099348]
[1726493823069,0.071825,2295.6,2295.5,14.10465348]
[1726493823887,0.071825,2295.6,2295.5,15.99457383]
[1726493824630,0.071825,2295.6,2295.5,20.35091383]
[1726493824835,0.071825,2296.9,2296.3,4.35473]
[1726493824992,0.071825,2296.9,2296.2,2.4258]
[1726493824993,0.57624078,2296.8,2296.5,4.35432]
[1726493825336,0.57624078,2296.7,2296.5,4.35432]
[1726493825542,0.071825,2296.9,2296.8,4.35388]
[1726493825689,0.071825,2296.9,2296.8,14.09216]
[1726493825891,0.071825,2296.9,2296.8,18.44604]
[1726493826086,0.071825,2296.9,2296.8,14.09216]
[1726493826314,0.071825,2296.9,2296.8,19.95525785]
[1726493826800,0.071825,2296.9,2296.8,24.74703785]
[1726493826990,0.071825,2298.2,2297.7,4.35217]
[1726493827193,0.071825,2298.2,2297.8,4.35187]
[1726493827194,0.57670685,2298.1,2297.8,4.35187]
[1726493827427,0.071825,2298.2,2297.6,0.680804]
[1726493827642,0.071825,2298.2,2297.5,11.16049]
[1726493827643,0.5766674,2298.1,2297.7,0.09728262]
[1726493827786,4.85150624,2298.1,2297.1,9.77092]
[1726493827990,4.35197,2297.9,2297.2,4.44883502]
[1726493828186,4.35197,2297.9,2297.2,0.09573502]
[1726493828187,4.352,2297.8,2297.2,0.09573502]
[1726493828389,0.071825,2298.2,2297.2,0.09573502]
[1726493828390,0.071825,2298.2,2297.5,4.35238]
[1726493828636,0.071825,2298.2,2297.9,4.35176]
[1726493828838,0.071825,2298.2,2298.0,0.08701368]
[1726493828991,0.071825,2298.2,2298.0,0.09560301]
[1726493829526,0.071825,2298.2,2297.5,4.35255]
[1726493829732,0.071825,2298.2,2298.1,0.09560301]
[1726493829926,0.071825,2298.2,2297.6,4.35233]
[1726493830113,0.071825,2298.2,2297.6,5.087585]
[1726493830291,0.071825,2298.2,2297.7,4.53477397]
[1726493830627,0.071825,2298.2,2297.8,0.08702085]
[1726493830812,0.071825,2298.2,2297.7,4.44765301]
[1726493830813,0.071825,2298.2,2297.7,4.35205]
[1726493831015,0.071825,2298.2,2297.4,3.0]
[1726493831016,6.82646,2298.1,2297.4,3.0]
[1726493831223,6.82646,2298.1,2297.3,6.77055]
[1726493831224,4.35161,2298.0,2297.3,6.77055]
[1726493831403,4.352,2297.8,2297.4,0.09222848]
[1726493831605,4.45998786,2298.0,2297.3,4.3529]
[1726493831821,2.4749,2298.1,2297.5,4.35255]
[1726493832027,2.4749,2298.1,2297.5,5.30549305]
[1726493832319,2.4749,2298.1,2297.0,2.2664]
[1726493832320,4.35217,2297.7,2297.6,0.08865551]
[1726493832491,11.10764,2297.7,2297.6,0.08865551]
[1726493832693,2.4033,2297.6,2296.4,0.296838]
[1726493832889,4.35321,2297.2,2296.5,4.35444]
[1726493833128,4.35295,2297.3,2296.5,0.53542748]
[1726493833341,2.4033,2297.6,2296.8,4.35387]
[1726493833638,2.4033,2297.6,2296.5,0.53542748]
[1726493833639,0.57638568,2297.5,2297.0,4.35344]
[1726493833791,4.35259,2297.5,2297.1,0.08274514]
[1726493833999,4.35259,2297.5,2296.8,4.35377]
[1726493834202,4.35259,2297.5,2296.9,0.08274514]
[1726493834448,2.4033,2297.6,2296.9,0.08274514]
[1726493834617,8.70536,2297.5,2296.8,4.35374]
[1726493834805,8.70536,2297.5,2296.9,0.0827031]
[1726493834806,4.35267,2297.5,2296.9,0.0827031]
[1726493835302,4.35275,2297.4,2296.9,0.0827031]
[1726493835524,4.35267,2297.5,2296.9,0.0827031]
[1726493835740,6.7962,2297.0,2296.9,0.0827031]
[1726493835941,6.7962,2297.0,2296.0,2.2688]
[1726493835942,2.4427,2297.0,2296.1,4.35511]
[1726493836148,2.4427,2297.3,2296.8,4.35378]
[1726493836304,4.46096786,2297.5,2296.7,6.80809]
[1726493836305,4.35266,2297.5,2296.7,6.80809]
[1726493836517,4.35304,2297.3,2296.7,4.35397]
[1726493836738,2.2595,2297.6,2296.8,0.0827031]
[1726493837039,1.42086805,2298.7,2296.5,4.35428]
[1726493837040,4.35343,2297.1,2296.5,4.35428]
[1726493837249,4.35343,2297.1,2296.6,0.08366367]
[1726493837738,6.61243,2297.3,2296.7,4.35393]
[1726493837941,2.2595,2297.3,2296.7,4.35393]
[1726493838144,0.10828786,2297.7,2296.8,5.12667726]
[1726493838145,6.61175,2297.7,2296.8,5.12667726]
[1726493838440,4.3527,2297.5,2296.8,0.08375789]
[1726493838640,4.3531,2297.3,2296.8,0.08375789]
[1726493838944,8.70538,2297.5,2296.9,4.35368]
[1726493839143,8.70538,2297.5,2296.9,0.08375789]
[1726493839144,4.35295,2297.3,2296.9,0.08375789]
[1726493839642,4.3527,2297.5,2296.9,4.43743789]
[1726493839845,4.3527,2297.5,2296.9,0.92645846]
[1726493839846,4.92929387,2297.4,2296.9,0.92645846]
[1726493840007,0.57654387,2297.3,2296.9,0.08375789]
[1726493840201,0.57654387,2297.3,2297.0,4.3534]
[1726493840519,4.35246,2297.6,2297.1,4.35328]
[1726493840716,0.57658046,2297.5,2297.1,4.43703789]
[1726493841031,4.35251,2297.6,2297.1,0.08375789]
[1726493841218,4.35284,2297.4,2296.8,4.35384]
[1726493841417,0.57659442,2297.3,2297.0,4.35347]
[1726493841605,4.35265,2297.5,2296.8,5.770064]
[1726493841822,4.35295,2297.3,2296.9,0.08361656]
[1726493842040,2.2595,2297.7,2296.9,4.43729656]
[1726493842341,4.35287,2297.4,2296.9,1.26273822]
[1726493842553,4.92955583,2297.3,2296.9,0.08361656]
[1726493842867,0.57661747,2297.2,2296.9,0.08361656]
[1726493843023,0.57655044,2297.1,2296.9,0.08361656]
[1726493843221,0.57655044,2297.1,2296.4,8.70903]
[1726493843222,4.93003298,2297.0,2296.4,8.70903]
[1726493843421,4.35332,2297.1,2296.5,0.08441697]
[1726493843657,0.57653217,2297.0,2296.5,4.43874697]
[1726493843856,0.57653217,2297.0,2296.6,4.35425]
[1726493844021,4.35265,2297.5,2296.8,4.35375]
[1726493844223,4.92952798,2297.4,2296.9,0.08441697]
[1726493844417,0.57666798,2297.3,2296.9,0.08441697]
[1726493844668,0.57666798,2297.3,2296.9,0.52823367]
[1726493844872,5.61394349,2298.1,2297.3,4.35276]
[1726493844873,4.35189,2297.9,2297.3,4.35276]
[1726493845169,4.35227,2297.7,2297.4,0.08449234]
[1726493845340,0.57683465,2297.6,2297.4,0.08449234]
[1726493845525,0.0335036,2297.7,2297.1,7.3532]
[1726493845861,4.3857736,2297.7,2297.2,0.73532]
[1726493846064,4.35281,2297.4,2297.3,0.08453003]
[1726493846220,4.35295,2297.3,2296.7,8.70793]
[1726493846421,4.35295,2297.3,2296.8,0.08453003]
[1726493846649,4.35295,2297.3,2296.7,4.35396]
[1726493846650,4.35322,2297.2,2296.7,4.35396]
[1726493846925,4.35295,2297.3,2296.9,0.08453003]
[1726493846926,4.3534,2297.1,2296.9,0.08453003]
[1726493847150,8.70682,2297.1,2296.5,4.79232]
[1726493847464,8.70682,2297.1,2296.6,3.0]
[1726493847638,4.3536,2297.0,2296.7,0.08453003]
[1726493847962,4.35457,2296.5,2295.9,6.84936]
[1726493848268,4.35408,2296.7,2296.2,4.35487]
[1726493848449,4.35372,2296.9,2296.3,4.35481]
[1726493848635,4.35372,2296.9,2296.3,4.35473]
[1726493848838,4.35361,2297.0,2296.5,4.35442]
[1726493849043,4.35346,2297.1,2296.5,4.35432]
[1726493849286,4.35408,2296.7,2296.3,0.435473]
[1726493849576,4.35389,2296.8,2296.2,7.355]
[1726493849771,4.35436,2296.6,2296.1,4.35506]
[1726493850071,4.35436,2296.6,2296.1,8.7103]
[1726493850277,8.70877,2296.6,2296.0,7.35539]
[1726493850570,4.35436,2296.6,2296.1,4.35518]
[1726493850777,4.35435,2296.6,2296.1,5.775635]
[1726493850930,4.35435,2296.6,2296.1,5.775575]
[1726493851264,4.35435,2296.6,2296.1,1.420455]
[1726493851465,4.35458,2296.5,2296.1,1.420455]
[1726493851639,4.35437,2296.6,2296.1,4.3552]
[1726493851846,4.35437,2296.6,2296.1,8.7104]
[1726493852050,2.47328786,2296.6,2295.7,4.35581]
[1726493852230,2.47328786,2296.6,2295.1,2.402]
[1726493852231,4.35625,2295.6,2295.1,2.402]
[1726493852975,4.35445,2296.5,2295.2,0.07626495]
[1726493852976,4.35672,2295.3,2295.2,0.07626495]
[1726493853183,8.82172786,2295.3,2295.2,0.07626495]
[1726493853336,4.35732,2295.0,2294.4,6.69691]
[1726493853683,4.35798,2294.7,2294.5,0.0735412]
[1726493853974,4.35797,2294.7,2294.1,4.35888]
[1726493854128,4.35797,2294.7,2294.6,0.0701504]
[1726493854328,4.35797,2294.7,2294.1,4.35888]
[1726493854645,4.35768,2294.8,2294.1,4.35889]
[1726493854969,4.35768,2294.8,2294.3,4.35849]
[1726493855270,2.3114,2295.2,2294.6,4.35789]
[1726493855271,4.35701,2295.2,2294.6,4.35789]
[1726493855467,2.47438786,2295.5,2294.5,2.2579]
[1726493855673,2.47438786,2295.5,2294.7,0.0701504]
[1726493855674,4.3573,2295.0,2294.7,0.0701504]
[1726493855874,4.3573,2295.0,2294.4,4.35829]
[1726493856173,4.3573,2295.0,2294.8,0.0701504]
[1726493856375,4.35805,2294.6,2294.2,3.0]
[1726493856610,4.35794,2294.7,2294.0,0.02]
[1726493856867,4.359,2294.1,2294.0,0.02]
[1726493857079,11.001,2294.1,2294.0,0.02]
[1726493857443,6.642,2294.1,2294.0,0.02]
[1726493857848,2.2809,2294.5,2294.0,0.02]
[1726493858032,8.71716,2294.4,2294.0,0.02]
[1726493858241,4.35857,2294.4,2294.0,0.02]
[1726493858466,2.2809,2294.5,2294.0,0.02]
[1726493858771,4.3578,2294.8,2294.0,0.457926]
[1726493858986,2.3426,2294.9,2294.4,4.35843]
[1726493859135,4.35755,2294.9,2294.4,0.435843]
[1726493859335,4.35706,2295.2,2294.7,4.35786]
[1726493859576,6.69947,2295.3,2294.7,0.435786]
[1726493859869,4.35693,2295.2,2294.7,0.435786]
[1726493860046,4.35665,2295.4,2294.8,4.35757]
[1726493860399,4.35708,2295.2,2294.8,0.7149626]
[1726493860546,4.35703,2295.2,2294.7,0.435786]
[1726493861031,8.7133,2295.4,2294.7,0.435786]
[1726493861232,8.7133,2295.4,2294.8,5.0725986]
[1726493861233,4.35659,2295.4,2294.8,5.0725986]
[1726493861438,4.35666,2295.4,2294.8,0.7149586]
[1726493861900,6.81752,2295.6,2295.0,4.35729]
[1726493862077,4.3574,2295.0,2294.4,4.35826]
[1726493862784,4.35704,2295.2,2294.4,4.35826]
[1726493862785,8.71414,2295.2,2294.4,4.35826]
[1726493862987,4.35722,2295.1,2294.4,4.35832]
[1726493863146,4.35803,2294.7,2294.2,6.7489]
[1726493863353,0.10828786,2294.6,2294.0,4.37905]
[1726493863582,4.35839,2294.5,2294.0,0.02]
[1726493863788,4.35893,2294.2,2294.0,0.02]
[1726493863948,4.359,2294.1,2294.0,0.02]
[1726493864177,4.35893,2294.2,2294.0,0.02]
[1726493864377,2.4252,2294.6,2294.0,0.02]
[1726493864724,6.78281,2294.9,2294.1,4.35886]
[1726493864898,4.35739,2295.0,2294.3,4.35858]
[1726493865218,4.35759,2294.9,2294.4,4.35842]
[1726493865420,4.35788,2294.7,2294.2,2.2854]
[1726493865585,0.10828786,2294.8,2294.2,2.51594]
[1726493865785,4.35787,2294.7,2294.2,2.51594]
[1726493866115,4.3576,2294.9,2294.2,6.87472]
[1726493866283,4.3576,2294.9,2294.3,0.251594]
[1726493866480,4.3576,2294.9,2294.4,4.35832]
[1726493866693,4.35725,2295.1,2294.4,4.35832]
[1726493866913,4.35752,2294.9,2294.4,4.35832]
[1726493867082,4.3579,2294.7,2294.2,6.87467]
[1726493867592,4.35752,2294.9,2294.2,6.87464]
[1726493867788,4.35752,2294.9,2294.3,0.75321526]
[1726493868219,4.35826,2294.5,2294.3,0.06575126]
[1726493868417,4.35792,2294.7,2294.3,0.06575126]
[1726493868622,4.35834,2294.5,2294.0,4.37905]
[1726493868824,4.3576,2294.9,2294.0,4.37905]
[1726493868825,4.35798,2294.7,2294.4,0.06575126]
[1726493868988,4.35816,2294.6,2294.1,4.35896]
[1726493869195,4.35798,2294.7,2294.2,0.06575126]
[1726493869524,4.35807,2294.6,2294.2,0.06575126]
[1726493869936,0.10828786,2294.6,2294.2,0.06575126]
[1726493870091,4.35862,2294.3,2294.2,0.06575126]
[1726493870296,4.35862,2294.3,2294.0,0.02]
[1726493870518,4.35825,2294.5,2294.2,0.06619407]
[1726493870841,4.35765,2294.9,2294.3,4.35848]
[1726493870986,4.35754,2294.9,2294.3,6.86668349]
[1726493871413,4.35724,2295.1,2294.6,4.35791]
[1726493871629,4.35693,2295.2,2294.7,4.793631]
[1726493871874,4.35712,2295.1,2294.7,0.435791]
[1726493872046,8.71434,2295.1,2294.8,0.06628831]
[1726493872241,8.71435,2295.1,2294.6,4.35791]
[1726493872543,4.35712,2295.1,2294.9,0.06628831]
[1726493872749,4.35712,2295.1,2294.6,5.229532]
[1726493872952,4.35712,2295.1,2295.0,0.06628831]
[1726493873274,4.35687,2295.3,2294.3,2.442]
[1726493873275,4.35758,2294.9,2294.4,4.35841]
[1726493873440,4.35772,2294.8,2294.4,1.415908]
[1726493873777,4.35772,2294.8,2294.3,4.35853]
[1726493873778,4.35781,2294.8,2294.3,4.35853]
[1726493874207,4.35816,2294.6,2294.1,3.437918]
[1726493874353,4.35799,2294.7,2294.1,4.796918]
[1726493874671,4.35799,2294.7,2294.2,0.4816918]
[1726493874835,4.35815,2294.6,2294.2,0.4816918]
[1726493875036,4.35799,2294.7,2294.2,0.4816918]
[1726493875448,4.35819,2294.6,2294.2,0.4816918]
[1726493875638,8.71604,2294.7,2294.2,0.4816918]
[1726493875865,4.35812,2294.6,2294.2,0.4816918]
[1726493876435,4.35799,2294.7,2294.2,4.8403918]
[1726493876641,2.4948,2295.2,2294.3,0.96371598]
[1726493876943,8.71487,2295.0,2294.4,4.35842]
[1726493877142,6.85185,2295.2,2294.4,2.4737]
[1726493877463,4.35713,2295.1,2294.5,4.60547]
[1726493877789,6.85185,2295.2,2294.7,4.35782]
[1726493877790,6.85182,2295.2,2294.7,4.35782]
[1726493878078,4.35702,2295.2,2294.7,0.896314]
[1726493878546,4.35712,2295.1,2294.7,0.896314]
[1726493878749,4.35673,2295.3,2294.8,4.35759]
[1726493879045,4.3573,2295.0,2294.5,4.60551]
[1726493879450,8.7141,2295.2,2294.6,5.065861]
[1726493879653,4.35686,2295.3,2294.8,4.35753]
[1726493879875,6.6563,2295.5,2295.0,4.35719]
[1726493880095,4.3565,2295.5,2295.0,4.35719]
[1726493880257,2.2998,2295.8,2295.1,4.35706]
[1726493880476,4.35666,2295.4,2295.1,0.435706]
[1726493880675,2.2998,2295.8,2295.1,2.3337]
[1726493880870,4.35427,2296.6,2295.1,2.3337]
[1726493880871,2.40808786,2296.2,2295.4,4.35651]
[1726493881210,2.40808786,2296.2,2295.2,0.23337]
[1726493881211,4.46297786,2296.4,2295.5,4.35634]
[1726493881511,4.46297786,2296.4,2295.3,4.35661]
[1726493881512,4.35542,2296.0,2295.3,4.35661]
[1726493881699,4.35542,2296.0,2295.4,4.35635]
[1726493881902,4.35542,2296.0,2295.3,4.35661]
[1726493881903,4.35582,2295.8,2295.3,4.35661]
[1726493882084,4.35582,2295.8,2295.3,8.71323]
[1726493882267,4.35546,2296.0,2295.5,4.35622]
[1726493882463,2.2998,2296.6,2295.6,4.35609]
[1726493882765,4.35447,2296.5,2295.8,4.35565]
[1726493882992,5.16069123,2296.8,2296.0,4.35527]
[1726493883328,2.4979,2296.9,2296.2,4.3549]
[1726493883478,4.35398,2296.8,2296.3,0.43549]
[1726493883677,2.4979,2296.9,2295.8,4.35564]
[1726493883678,0.10828786,2296.7,2295.8,4.35564]
[1726493883916,4.35458,2296.5,2295.9,4.42062875]
[1726493884124,4.35419,2296.7,2296.1,4.35504]
[1726493884283,4.35419,2296.7,2296.0,4.35534]
[1726493884478,4.35419,2296.7,2295.9,1.49028763]
[1726493884479,4.3542,2296.7,2296.1,0.06337884]
[1726493884678,2.60618786,2296.9,2296.1,0.06337884]
[1726493884679,4.35381,2296.9,2296.4,4.35451]
[1726493884918,4.35304,2297.3,2296.4,2.891151]
[1726493885125,4.35304,2297.3,2296.7,4.35389]
[1726493885328,4.35351,2297.0,2296.5,0.06337884]